bitfinex/quotes_BTCUSD_20251226
["timestamp","ask_amount","ask_price","bid_price","bid_amount"]
[1766773658302,3.1e-07,87418.0,87413.0,0.04236381]
[1766773658906,0.01144073,87407.0,87395.0,0.06170461]
[1766773659104,0.01144073,87407.0,87383.0,0.08140612]
[1766773659105,0.08467125,87403.0,87383.0,0.12309771]
[1766773659339,0.07323,87399.0,87384.0,0.01148]
[1766773659503,0.07323,87397.0,87376.0,0.06170461]
[1766773659702,0.07323,87397.0,87370.0,0.46117288]
[1766773659703,0.07323,87395.0,87380.0,0.44972731]
[1766773659907,0.44972731,87390.0,87381.0,0.01148]
[1766773660130,0.07323,87389.0,87381.0,0.01148]
[1766773660332,0.07323,87389.0,87370.0,0.01144557]
[1766773660537,0.07323,87389.0,87371.0,0.01148]
[1766773660731,0.08467308,87389.0,87371.0,0.01148]
[1766773660936,0.07323,87387.0,87371.0,0.01148]
[1766773661097,0.07323,87387.0,87371.0,0.011837]
[1766773661739,0.07323,87387.0,87371.0,0.02328244]
[1766773661920,0.07323,87387.0,87372.0,0.01144531]
[1766773662254,0.07323,87387.0,87373.0,0.01144518]
[1766773662557,0.05890429,87386.0,87372.0,0.01144531]
[1766773663874,0.05890429,87386.0,87371.0,0.011837]
[1766773664085,0.07323,87385.0,87371.0,0.011837]
[1766773670813,0.44972731,87381.0,87371.0,0.011837]
[1766773673375,0.44972731,87381.0,87372.0,0.01148]
[1766773673575,0.05192372,87380.0,87372.0,0.01148]
[1766773676233,0.06996,87372.0,87371.0,1e-08]
[1766773676404,0.06996,87372.0,87348.0,0.01184845]
[1766773676405,0.06996,87365.0,87348.0,0.0004]
[1766773676586,0.06996,87363.0,87355.0,0.00030703]
[1766773676817,0.06996,87361.0,87355.0,0.00030703]
[1766773677056,0.06996,87359.0,87355.0,0.00030703]
[1766773679139,0.06996,87359.0,87348.0,0.0004]
[1766773679346,0.08140793,87352.0,87348.0,0.0004]
[1766773679562,0.06868728,87353.0,87344.0,0.01148]
[1766773679796,0.06996,87352.0,87344.0,0.01148]
[1766773682166,0.05365459,87352.0,87344.0,0.02292898]
[1766773682590,0.0092851,87364.0,87344.0,0.02292898]
[1766773682591,0.06996,87368.0,87351.0,0.01144806]
[1766773682910,0.01148,87367.0,87350.0,0.4611755]
[1766773683141,0.06996,87368.0,87355.0,0.11887752]
[1766773683335,0.48037832,87390.0,87355.0,0.11887752]
[1766773683336,0.01148,87376.0,87367.0,0.00055]
[1766773683464,0.00010723,87376.0,87368.0,0.01144583]
[1766773683694,0.00010723,87376.0,87368.0,0.07554229]
[1766773683895,0.00010723,87376.0,87370.0,0.01144557]
[1766773684103,0.00010723,87376.0,87365.0,0.01144623]
[1766773684545,0.00010723,87376.0,87363.0,0.01144649]
[1766773684935,0.06996,87375.0,87364.0,0.01148]
[1766773685125,0.07811472,87375.0,87364.0,0.01148]
[1766773688232,0.07811472,87375.0,87361.0,0.01148]
[1766773694832,0.01144623,87365.0,87337.0,0.0114499]
[1766773694961,0.0729,87359.0,87340.0,0.0114495]
[1766773695184,0.46189742,87360.0,87340.0,0.0114495]
[1766773695185,0.0729,87357.0,87340.0,0.0114495]
[1766773695387,0.0729,87370.0,87357.0,0.00055]
[1766773695608,0.08434583,87368.0,87357.0,0.00055]
[1766773695795,0.0729,87366.0,87348.0,0.01144845]
[1766773696151,0.12855404,87365.0,87347.0,0.01144859]
[1766773696353,0.12855404,87365.0,87348.0,0.01144845]
[1766773696718,0.12855404,87365.0,87348.0,0.06869059]
[1766773696920,0.0729,87375.0,87356.0,0.01144741]
[1766773697121,0.01148,87374.0,87365.0,0.00055]
[1766773697525,0.0729,87372.0,87354.0,0.01148]
[1766773697722,0.0114457,87369.0,87354.0,0.01148]
[1766773698041,0.0729,87367.0,87354.0,0.01148]
[1766773699507,0.08434596,87367.0,87354.0,0.01148]
[1766773699787,0.0729,87366.0,87349.0,0.01148]
[1766773700271,0.0729,87364.0,87349.0,0.01148]
[1766773700471,0.08434636,87364.0,87349.0,0.01148]
[1766773700674,0.0729,87359.0,87349.0,0.01148]
[1766773700827,0.0729,87359.0,87342.0,0.0004]
[1766773700828,0.08434714,87358.0,87342.0,0.0004]
[1766773701025,0.0729,87352.0,87342.0,0.01188]
[1766773701225,0.08434806,87351.0,87342.0,0.0004]
[1766773701432,0.0729,87351.0,87342.0,0.0004]
[1766773702230,0.0729,87350.0,87342.0,0.0004]
[1766773702660,0.0729,87347.0,87342.0,0.0004]
[1766773702983,0.08434976,87338.0,87332.0,0.0004]
[1766773703277,0.08434976,87338.0,87327.0,0.0004]
[1766773703278,0.0729,87334.0,87327.0,0.0004]
[1766773703858,0.0729,87334.0,87330.0,0.00010707]
[1766773704062,0.0729,87334.0,87327.0,0.0004]
[1766773704247,0.0729,87334.0,87329.0,0.000251]
[1766773704441,0.08017922,87338.0,87322.0,0.0004]
[1766773704442,0.08435094,87329.0,87322.0,0.0004]
[1766773704683,0.0729,87329.0,87311.0,0.04584]
[1766773704885,0.0729,87329.0,87311.0,0.0574003]
[1766773705124,0.0729,87329.0,87312.0,0.01145317]
[1766773705449,0.0729,87329.0,87311.0,0.0574003]
[1766773705652,0.0729,87327.0,87311.0,0.11466638]
[1766773705884,0.0729,87327.0,87312.0,0.06871856]
[1766773706082,0.072351,87327.0,87313.0,0.01145304]
[1766773706285,0.072351,87327.0,87315.0,0.01145278]
[1766773706496,0.072351,87327.0,87314.0,0.01145291]
[1766773706818,0.072351,87327.0,87315.0,0.01145278]
[1766773707879,0.072351,87327.0,87311.0,0.0574003]
[1766773708397,0.0830242,87327.0,87311.0,0.0574003]
[1766773708975,0.0830242,87327.0,87312.0,0.01145317]
[1766773709324,0.0830242,87327.0,87326.0,0.000408]
[1766773709524,0.072351,87327.0,87311.0,0.0574003]
[1766773709844,0.072351,87327.0,87315.0,0.01145278]
[1766773710044,0.072351,87327.0,87315.0,0.05726392]
[1766773710269,0.072351,87327.0,87315.0,0.01145278]
[1766773711184,0.072351,87327.0,87314.0,0.01145291]
[1766773711384,0.072351,87327.0,87313.0,0.01145304]
[1766773711692,0.072351,87327.0,87314.0,0.01145291]
[1766773712243,0.072351,87327.0,87311.0,0.04594699]
[1766773712628,0.06258862,87326.0,87311.0,0.04594699]
[1766773712753,0.072351,87327.0,87311.0,0.04594699]
[1766773713165,0.072351,87327.0,87311.0,0.0574003]
[1766773713383,0.072351,87327.0,87312.0,0.01145317]
[1766773713585,0.072351,87327.0,87314.0,0.01145291]
[1766773713786,0.072351,87327.0,87315.0,0.01145278]
[1766773713970,0.05342815,87326.0,87316.0,0.01145265]
[1766773714163,0.072351,87327.0,87316.0,0.01145265]
[1766773714390,0.072351,87327.0,87311.0,0.04594699]
[1766773714637,0.072351,87327.0,87313.0,0.01145304]
[1766773714829,0.072351,87327.0,87314.0,0.01145291]
[1766773715236,0.072351,87327.0,87317.0,0.01145252]
[1766773715641,0.072351,87327.0,87316.0,0.01145265]
[1766773716660,0.072351,87327.0,87317.0,0.01145252]
[1766773717903,0.072351,87327.0,87318.0,0.01145239]
[1766773718104,0.072351,87327.0,87318.0,0.00025126]
[1766773719055,0.072351,87327.0,87318.0,0.01170365]
[1766773719198,0.072351,87327.0,87318.0,0.00025126]
[1766773719602,0.072351,87327.0,87318.0,0.01170365]
[1766773720026,0.072351,87327.0,87318.0,0.00025126]
[1766773720259,0.01145213,87320.0,87311.0,0.04594699]
[1766773720459,0.07495,87314.0,87311.0,0.00010699]
[1766773720660,0.07495,87313.0,87301.0,0.01148]
[1766773720819,0.07505713,87313.0,87310.0,0.00025119]
[1766773721020,0.09057951,87313.0,87310.0,0.00025119]
[1766773721223,0.07447797,87313.0,87310.0,0.00025119]
[1766773723280,0.07495,87321.0,87313.0,0.000958]
[1766773723486,0.01148,87320.0,87313.0,0.000958]
[1766773723666,0.07495,87321.0,87313.0,0.000958]
[1766773723866,0.07495,87321.0,87310.0,0.01170463]
[1766773724083,0.07495,87327.0,87310.0,0.01170463]
[1766773724287,0.01148,87323.0,87310.0,0.00025119]
[1766773724473,0.08626,87323.0,87310.0,0.00025119]
[1766773728386,0.07478,87322.0,87310.0,0.00025119]
[1766773730023,0.01145199,87321.0,87310.0,0.00025119]
[1766773730239,0.07478,87320.0,87310.0,0.00025119]
[1766773731743,0.000141,87310.0,87302.0,0.01145449]
[1766773732117,0.06808,87311.0,87302.0,0.00010713]
[1766773732288,0.067672,87311.0,87302.0,0.00010713]
[1766773733421,0.067672,87311.0,87304.0,0.01145422]
[1766773733588,0.06172883,87311.0,87305.0,0.01145409]
[1766773733735,0.06172883,87311.0,87304.0,0.01145422]
[1766773733945,0.06172883,87311.0,87305.0,0.01145409]
[1766773734169,0.01148,87316.0,87303.0,0.01145436]
[1766773734365,0.01148,87316.0,87305.0,0.01145409]
[1766773734706,0.01148,87316.0,87303.0,0.0687256]
[1766773734707,0.01148,87317.0,87316.0,0.00055]
[1766773734906,0.01148,87322.0,87316.0,0.00055]
[1766773735107,0.01148,87322.0,87308.0,0.0114537]
[1766773735328,0.01148,87322.0,87309.0,0.01145357]
[1766773735621,0.06808,87325.0,87311.0,0.01145331]
[1766773735834,0.06808,87325.0,87312.0,0.01145317]
[1766773735835,0.01148,87323.0,87312.0,0.01145317]
[1766773736319,0.01093,87323.0,87313.0,0.01145304]
[1766773736721,0.01093,87323.0,87314.0,0.01145291]
[1766773736927,0.01093,87323.0,87313.0,0.01145304]
[1766773737091,0.01093,87323.0,87314.0,0.01145291]
[1766773737478,0.01093,87323.0,87313.0,0.01145304]
[1766773738103,0.01093,87323.0,87310.0,0.01148]
[1766773738334,0.01093,87323.0,87302.0,0.01181285]
[1766773738525,0.000549,87310.0,87307.0,0.01148]
[1766773738934,0.06808,87319.0,87307.0,0.01148]
[1766773739771,0.1359131,87319.0,87307.0,0.01148]
[1766773740346,0.06808,87318.0,87307.0,0.01148]
[1766773740959,0.06808,87318.0,87307.0,0.02293383]
[1766773741741,0.06808,87318.0,87308.0,0.0114537]
[1766773742090,0.01093,87323.0,87309.0,0.01145357]
[1766773742296,0.01145108,87328.0,87308.0,0.0114537]
[1766773742297,0.06808,87325.0,87319.0,0.0572608]
[1766773742502,0.06808,87325.0,87317.0,0.01145252]
[1766773742760,0.06808,87325.0,87318.0,0.01145239]
[1766773742869,0.06808,87325.0,87319.0,0.01145226]
[1766773743073,0.06808,87325.0,87320.0,0.01145213]
[1766773743274,0.06808,87325.0,87318.0,0.01145239]
[1766773743510,0.06808,87325.0,87316.0,0.01148]
[1766773743727,0.06808,87325.0,87317.0,0.01145252]
[1766773744028,0.06808,87325.0,87318.0,0.01145239]
[1766773744471,0.06808,87333.0,87318.0,0.01145239]
[1766773745418,0.06808,87333.0,87317.0,0.01145252]
[1766773745616,0.06808,87333.0,87319.0,0.01145226]
[1766773745823,0.06808,87333.0,87320.0,0.01145213]
[1766773746194,0.06808,87333.0,87319.0,0.01145226]
[1766773746391,0.06808,87333.0,87320.0,0.01145213]
[1766773747268,0.06808,87333.0,87319.0,0.01145226]
[1766773747464,0.06808,87333.0,87320.0,0.01145213]
[1766773747850,0.06808,87333.0,87319.0,0.01145226]
[1766773748283,0.06808,87333.0,87318.0,0.01145239]
[1766773749476,0.06808,87332.0,87320.0,0.45091845]
[1766773749969,0.06808,87332.0,87318.0,0.01145239]
[1766773750171,0.06808,87332.0,87320.0,0.45091845]
[1766773751122,0.000549,87320.0,87316.0,0.01148]
[1766773751281,0.000549,87320.0,87317.0,0.01145252]
[1766773751483,0.06808,87332.0,87316.0,0.01148]
[1766773751684,0.06808,87330.0,87316.0,0.01148]
[1766773751870,0.06808,87330.0,87316.0,0.02293265]
[1766773752070,0.06808,87330.0,87317.0,0.01145252]
[1766773752707,0.06808,87330.0,87316.0,0.01148]
[1766773752913,0.0114516,87324.0,87305.0,0.04122129]
[1766773753105,0.45091845,87320.0,87302.0,0.01181285]
[1766773753289,0.45091845,87320.0,87304.0,0.01145422]
[1766773753719,0.06808,87319.0,87304.0,0.01145422]
[1766773753917,0.06106395,87318.0,87306.0,0.01145396]
[1766773754257,0.06808,87318.0,87308.0,0.0114537]
[1766773754390,0.01148,87320.0,87312.0,0.01145317]
[1766773754995,0.01148,87320.0,87306.0,0.01145396]
[1766773755215,0.01148,87320.0,87308.0,0.0114537]
[1766773756202,0.01148,87320.0,87309.0,0.01145357]
[1766773756408,0.01148,87320.0,87310.0,0.01145344]
[1766773756686,0.01148,87320.0,87311.0,0.01145331]
[1766773756893,0.01148,87320.0,87311.0,0.06871956]
[1766773757642,0.01148,87320.0,87313.0,0.01145304]
[1766773757805,0.01148,87324.0,87313.0,0.01145304]
[1766773758202,0.01148,87324.0,87312.0,0.01145317]
[1766773758824,0.01148,87324.0,87313.0,0.01145304]
[1766773759007,0.08544,87324.0,87312.0,0.01145317]
[1766773760310,0.08544,87324.0,87313.0,0.01145304]
[1766773760514,0.08544,87324.0,87312.0,0.01145317]
[1766773760966,0.08544,87324.0,87313.0,0.01145304]
[1766773761367,0.08544,87324.0,87312.0,0.01145317]
[1766773761679,0.14147444,87324.0,87314.0,0.01145291]
[1766773762883,0.14147444,87324.0,87313.0,0.01145304]
[1766773763041,0.14147444,87324.0,87314.0,0.01145291]
[1766773763238,0.08544,87324.0,87314.0,0.01145291]
[1766773763444,0.08544,87324.0,87315.0,0.01145278]
[1766773763741,0.08544,87324.0,87314.0,0.01145291]
[1766773763941,0.08544,87324.0,87312.0,0.01145317]
[1766773764354,0.08544,87324.0,87311.0,0.01145331]
[1766773764548,0.008544,87323.0,87311.0,0.01145331]
[1766773764755,0.008544,87323.0,87312.0,0.01145317]
[1766773765090,0.082504,87323.0,87312.0,0.01145317]
[1766773766072,0.082504,87323.0,87313.0,0.01145304]
[1766773766278,0.07396,87323.0,87312.0,0.01145317]
[1766773766478,0.07396,87323.0,87311.0,0.01145331]
[1766773767426,0.07396,87323.0,87309.0,0.01145357]
[1766773767591,0.07396,87323.0,87308.0,0.0229337]
[1766773767925,0.07396,87323.0,87310.0,0.01145344]
[1766773769319,0.07396,87323.0,87312.0,0.01145317]
[1766773769519,0.12759585,87323.0,87312.0,0.01145317]
[1766773769724,0.12759585,87323.0,87311.0,0.01145331]
[1766773769932,0.12759585,87323.0,87310.0,0.06872028]
[1766773770077,0.12759585,87323.0,87312.0,0.01145317]
[1766773770279,0.07396,87323.0,87311.0,0.01145331]
[1766773770790,0.07396,87323.0,87312.0,0.01145317]
[1766773771633,0.07396,87323.0,87311.0,0.01145331]
[1766773772311,0.07396,87323.0,87310.0,0.01145344]
[1766773772711,0.07396,87323.0,87312.0,0.01145317]
[1766773772906,0.07396,87323.0,87310.0,0.01145344]
[1766773773657,0.07396,87323.0,87310.0,0.06872032]
[1766773773859,0.07396,87323.0,87314.0,0.01145291]
[1766773774064,0.07396,87323.0,87312.0,0.01145317]
[1766773775262,0.07396,87323.0,87313.0,0.01145304]
[1766773775558,0.07396,87323.0,87312.0,0.01145317]
[1766773775707,0.07396,87323.0,87311.0,0.01145331]
[1766773775908,0.07396,87323.0,87312.0,0.01145317]
[1766773776110,0.07396,87323.0,87311.0,0.01145331]
[1766773776427,0.07396,87323.0,87312.0,0.01145317]
[1766773776815,0.12759585,87323.0,87311.0,0.01145331]
[1766773777450,0.12759585,87323.0,87308.0,0.0229337]
[1766773777651,0.45091845,87320.0,87308.0,0.01148]
[1766773779927,0.07396,87322.0,87308.0,0.0229337]
[1766773780223,0.07396,87322.0,87310.0,0.01145344]
[1766773780625,0.008544,87321.0,87310.0,0.06872017]
[1766773780831,0.008544,87321.0,87311.0,0.01145331]
[1766773781028,0.008544,87321.0,87312.0,0.01145317]
[1766773781281,0.008544,87321.0,87308.0,0.01148]
[1766773781455,0.008544,87321.0,87310.0,0.01145344]
[1766773781657,0.07396,87322.0,87308.0,0.06874806]
[1766773781858,0.07396,87322.0,87310.0,0.01145344]
[1766773782232,0.07396,87322.0,87311.0,0.01145331]
[1766773783049,0.07396,87322.0,87312.0,0.01145317]
[1766773784317,0.07396,87322.0,87311.0,0.01145331]
[1766773784531,0.07396,87322.0,87313.0,0.01145304]
[1766773784689,0.01144976,87338.0,87313.0,0.01145304]
[1766773784896,0.07462,87334.0,87322.0,0.000549]
[1766773785095,0.01072288,87333.0,87322.0,0.000549]
[1766773785294,0.07462,87331.0,87322.0,0.000549]
[1766773785543,0.08607094,87329.0,87310.0,0.01145344]
[1766773785748,0.45091845,87320.0,87309.0,0.04122129]
[1766773785963,0.45091845,87320.0,87308.0,0.05270129]
[1766773786121,0.07462,87324.0,87308.0,0.06874841]
[1766773786322,0.07462,87324.0,87310.0,0.01145344]
[1766773786323,0.0861,87324.0,87310.0,0.01145344]
[1766773786530,0.0861,87324.0,87311.0,0.01145331]
[1766773786531,0.12946693,87323.0,87311.0,0.01145331]
[1766773787008,0.07462,87322.0,87311.0,0.01145331]
[1766773787407,0.07462,87322.0,87312.0,0.01145317]
[1766773787654,0.07462,87322.0,87311.0,0.01145331]
[1766773787892,0.07462,87322.0,87310.0,0.01145344]
[1766773788161,0.07462,87322.0,87309.0,0.01145357]
[1766773788308,0.07462,87322.0,87310.0,0.01145344]
[1766773788970,0.01409469,87321.0,87308.0,0.01148]
[1766773789113,0.01409469,87321.0,87313.0,0.01145304]
[1766773789316,0.01148,87324.0,87313.0,0.01145304]
[1766773789723,0.01148,87324.0,87314.0,0.01145291]
[1766773791366,0.03080813,87338.0,87316.0,0.01145265]
[1766773791571,0.03080813,87338.0,87310.0,0.45091845]
[1766773791572,0.06882,87334.0,87324.0,0.000549]
[1766773792037,0.08023029,87334.0,87315.0,0.02293278]
[1766773792212,0.08023029,87334.0,87324.0,0.0002]
[1766773792413,0.06878,87334.0,87324.0,0.0002]
[1766773792615,0.06878,87334.0,87315.0,0.02293278]
[1766773792616,0.06878,87334.0,87315.0,0.01358543]
[1766773792816,0.00055,87315.0,87314.0,0.01148]
[1766773793151,0.06882,87323.0,87314.0,0.01148]
[1766773793586,0.06882,87323.0,87303.0,0.06872584]
[1766773793587,0.06882,87310.0,87300.0,0.3]
[1766773793697,0.01145265,87316.0,87300.0,0.3]
[1766773793698,0.01796161,87306.0,87300.0,0.3]
[1766773793904,0.01796161,87306.0,87302.0,3.6e-07]
[1766773794148,2.61e-06,87306.0,87302.0,3.6e-07]
[1766773794453,2.61e-06,87306.0,87303.0,0.01145436]
[1766773794632,2.61e-06,87306.0,87303.0,0.0687258]
[1766773795234,2.61e-06,87306.0,87303.0,0.01145436]
[1766773796051,2.61e-06,87306.0,87302.0,0.01145485]
[1766773796260,2.61e-06,87306.0,87302.0,3.6e-07]
[1766773797084,0.08008098,87314.0,87302.0,3.6e-07]
[1766773798755,0.08008098,87314.0,87302.0,0.01145485]
[1766773798962,0.1240513,87314.0,87303.0,0.01145436]
[1766773799168,0.08008098,87314.0,87302.0,0.01145485]
[1766773799999,0.08008098,87314.0,87302.0,3.6e-07]
[1766773802103,0.08008098,87314.0,87302.0,0.01145485]
[1766773802300,0.06882,87314.0,87303.0,0.13033188]
[1766773802583,0.06882,87326.0,87315.0,0.01145278]
[1766773802795,0.006882,87326.0,87314.0,0.000358]
[1766773803365,0.006882,87326.0,87312.0,0.02293317]
[1766773803366,0.006882,87326.0,87313.0,0.01145304]
[1766773803709,0.0803,87329.0,87315.0,0.01145278]
[1766773803835,0.0803,87329.0,87318.0,0.01145239]
[1766773804205,0.0803,87329.0,87317.0,0.01145252]
[1766773804767,0.0803,87329.0,87316.0,0.01145265]
[1766773804989,0.06882,87329.0,87316.0,0.02293265]
[1766773805167,0.45091845,87330.0,87316.0,0.1058223]
[1766773805508,0.45091845,87330.0,87316.0,0.01148]
[1766773805682,0.51973845,87330.0,87316.0,0.01148]
[1766773806057,0.06882,87330.0,87316.0,0.01148]
[1766773808524,0.06882,87330.0,87317.0,0.11887752]
[1766773808747,0.01148,87333.0,87318.0,0.01145239]
[1766773808910,0.01148,87333.0,87317.0,0.13033004]
[1766773808911,0.06882,87332.0,87317.0,0.11887752]
[1766773811466,0.06882,87332.0,87316.0,0.01148]
[1766773811628,0.06882,87332.0,87316.0,0.02293265]
[1766773812049,0.06882,87332.0,87317.0,0.01145252]
[1766773812357,0.06882,87332.0,87316.0,0.02293265]
[1766773812589,0.01148,87333.0,87318.0,0.13032991]
[1766773812975,0.01148,87333.0,87319.0,0.01145226]
[1766773813979,0.0803,87333.0,87316.0,0.02293265]
[1766773814337,0.0803,87333.0,87317.0,0.13033004]
[1766773814960,0.0803,87333.0,87318.0,0.01145239]
[1766773815287,0.0803,87333.0,87317.0,0.13033004]
[1766773815533,0.0803,87333.0,87318.0,0.01145239]
[1766773815767,0.0803,87333.0,87317.0,0.13033004]
[1766773815768,0.01148,87333.0,87321.0,0.01145199]
[1766773815941,0.06889448,87344.0,87336.0,0.01145003]
[1766773815942,0.0002,87344.0,87336.0,0.01145003]
[1766773816113,1e-06,87336.0,87333.0,0.000358]
[1766773816494,0.05724819,87339.0,87314.0,0.05726398]
[1766773816722,0.01148,87340.0,87308.0,0.0114537]
[1766773816723,0.07391,87330.0,87317.0,0.11887752]
[1766773816896,0.07391,87330.0,87318.0,0.01148]
[1766773817096,0.07401725,87330.0,87318.0,0.01148]
[1766773817538,0.07401725,87330.0,87318.0,0.02293239]
[1766773817700,0.07401725,87330.0,87319.0,0.01145226]
[1766773818302,0.07401725,87330.0,87318.0,0.01148]
[1766773819571,0.08943399,87330.0,87318.0,0.01148]
[1766773824162,0.07401725,87330.0,87318.0,0.01148]
[1766773825785,0.07401725,87330.0,87318.0,0.02293239]
[1766773826011,0.07401725,87330.0,87318.0,0.01148]
[1766773826926,0.07401725,87330.0,87318.0,0.02293239]
[1766773827164,0.07401725,87330.0,87318.0,0.01148]
[1766773828841,0.08485697,87330.0,87318.0,0.01148]
[1766773829484,0.07401725,87330.0,87318.0,0.01148]
[1766773831026,0.00010725,87330.0,87318.0,0.01148]
[1766773831447,0.00010725,87330.0,87320.0,0.01145213]
[1766773831654,0.00010725,87330.0,87318.0,0.02293239]
[1766773831857,0.00010725,87330.0,87319.0,0.01145226]
[1766773832404,0.00010725,87330.0,87318.0,0.02293239]
[1766773833289,0.00010725,87330.0,87318.0,0.01148]
[1766773834077,0.07401725,87330.0,87318.0,0.01148]
[1766773835518,0.07401725,87330.0,87319.0,0.11887752]
[1766773835720,0.00010725,87330.0,87319.0,0.11887752]
[1766773836025,0.00010725,87330.0,87320.0,0.01145213]
[1766773837060,0.00010725,87330.0,87321.0,0.01145199]
[1766773838277,0.00010725,87330.0,87319.0,0.11887752]
[1766773841279,0.00010725,87330.0,87318.0,0.01148]
[1766773841488,0.000551,87319.0,87318.0,0.01148]
[1766773841747,0.01770985,87329.0,87318.0,0.01148]
[1766773842019,0.00010725,87330.0,87318.0,0.01148]
[1766773842946,0.00010725,87330.0,87307.0,0.29090782]
[1766773842947,0.074461,87318.0,87304.0,0.0412143]
[1766773843167,0.074461,87318.0,87303.0,0.10554503]
[1766773843383,0.07391,87318.0,87305.0,0.01148]
[1766773843543,0.06055885,87317.0,87305.0,0.01148]
[1766773844180,0.01148,87325.0,87305.0,0.01148]
[1766773844181,0.07194,87323.0,87306.0,0.01145396]
[1766773844646,0.07194,87323.0,87305.0,0.02293409]
[1766773845600,0.07194,87323.0,87305.0,0.01148]
[1766773846223,0.07194,87323.0,87305.0,0.02293409]
[1766773846727,0.07194,87323.0,87306.0,0.01145396]
[1766773846881,0.08944301,87322.0,87306.0,0.01145396]
[1766773848227,0.07194,87322.0,87307.0,0.01145383]
[1766773849056,0.07194,87322.0,87308.0,0.0114537]
[1766773849262,0.07194,87322.0,87312.0,0.01145317]
[1766773849466,0.01148,87326.0,87322.0,0.000548]
[1766773850026,0.07194,87329.0,87319.0,0.01145226]
[1766773850567,0.07194,87329.0,87317.0,0.01145252]
[1766773851192,0.07194,87329.0,87318.0,0.01145239]
[1766773851393,0.07194,87329.0,87319.0,0.01145226]
[1766773852191,0.07194,87329.0,87319.0,0.00748961]
[1766773853668,0.07194,87329.0,87318.0,0.01145239]
[1766773853873,0.07194,87329.0,87317.0,0.01145252]
[1766773854798,0.07194,87329.0,87318.0,0.01145239]
[1766773856321,0.07194,87329.0,87317.0,0.01145252]
[1766773856733,0.07194,87329.0,87316.0,0.02293265]
[1766773856932,0.07194,87329.0,87317.0,0.01145252]
[1766773857461,0.07194,87329.0,87316.0,0.02293265]
[1766773859251,0.07194,87329.0,87317.0,0.01145252]
[1766773859613,0.07194,87329.0,87316.0,0.02293265]
[1766773861694,0.07194,87329.0,87318.0,0.01145239]
[1766773861895,0.00835273,87328.0,87319.0,0.01145226]
[1766773862080,0.00835273,87328.0,87318.0,0.01145239]
[1766773862250,0.07194,87329.0,87318.0,0.01145239]
[1766773862450,0.07194,87329.0,87317.0,0.01145252]
[1766773862864,0.07194,87329.0,87319.0,0.01145226]
[1766773864295,0.07194,87329.0,87318.0,0.01145239]
[1766773864675,0.07194,87347.0,87329.0,0.000548]
[1766773864870,0.07194,87347.0,87333.0,0.11887752]
[1766773864871,0.01174959,87344.0,87333.0,0.11887752]
[1766773865203,0.01174959,87344.0,87331.0,0.01145068]
[1766773865705,0.01174959,87344.0,87332.0,0.01145055]
[1766773865915,0.01174959,87344.0,87336.0,0.01145003]
[1766773866118,0.01148,87349.0,87335.0,0.01145016]
[1766773866256,0.01148,87349.0,87336.0,0.01145003]
[1766773866457,0.01148,87349.0,87335.0,0.01151975]
[1766773866733,0.07194,87360.0,87339.0,0.45096573]
[1766773866867,0.07194,87360.0,87351.0,0.01144806]
[1766773867238,0.07194,87360.0,87348.0,0.01148]
[1766773867823,0.01148,87365.0,87348.0,0.01148]
[1766773868124,0.01148,87365.0,87350.0,0.45057315]
[1766773868533,0.08342,87365.0,87350.0,0.45057315]
[1766773868732,0.15209748,87365.0,87350.0,0.45057315]
[1766773868897,0.01144662,87362.0,87350.0,0.45057315]
[1766773869109,0.01144649,87363.0,87350.0,0.45057315]
[1766773869309,0.01144662,87362.0,87350.0,0.45057315]
[1766773869658,0.01144649,87363.0,87350.0,0.43657315]
[1766773869874,0.08338636,87364.0,87350.0,0.43657315]
[1766773870048,0.07194,87364.0,87348.0,0.01148]
[1766773870410,0.08338636,87364.0,87348.0,0.01148]
[1766773870806,0.07194,87364.0,87348.0,0.01148]
[1766773872205,0.01144649,87363.0,87348.0,0.01148]
[1766773872407,0.08338649,87363.0,87348.0,0.01148]
[1766773873436,0.01144714,87358.0,87348.0,0.01148]
[1766773873806,0.01144741,87356.0,87348.0,0.010929]
[1766773874208,0.01144754,87355.0,87348.0,0.010929]
[1766773874425,0.01144767,87354.0,87348.0,0.010929]
[1766773874628,0.01144741,87356.0,87348.0,0.010929]
[1766773875021,0.46202003,87360.0,87348.0,0.010929]
[1766773875407,0.45057315,87360.0,87348.0,0.010929]
[1766773879246,0.45057315,87360.0,87341.0,0.01144937]
[1766773879452,0.45057315,87360.0,87342.0,0.01148]
[1766773879649,0.54174512,87360.0,87342.0,0.01148]
[1766773879902,0.54174512,87360.0,87342.0,0.02292924]
[1766773880283,0.54174512,87360.0,87342.0,0.01144924]
[1766773880451,0.54174512,87360.0,87343.0,0.01148]
[1766773880891,0.07194,87362.0,87344.0,0.01144898]
[1766773881232,0.45057315,87360.0,87345.0,0.01144885]
[1766773881410,0.07194,87362.0,87344.0,0.01144898]
[1766773881572,0.45057315,87360.0,87344.0,0.01144898]
[1766773881751,0.07194,87362.0,87347.0,0.01144859]
[1766773881952,0.06851,87372.0,87362.0,0.000549]
[1766773882178,0.01144596,87367.0,87362.0,0.000549]
[1766773882379,0.06851,87367.0,87352.0,0.01148]
[1766773882606,0.0114461,87366.0,87352.0,0.01148]
[1766773883274,0.06450219,87366.0,87352.0,0.01148]
[1766773883460,0.01144623,87365.0,87352.0,0.01148]
[1766773883658,0.13301219,87366.0,87352.0,0.01148]
[1766773883659,0.14445829,87366.0,87352.0,0.01148]
[1766773883895,0.13301219,87366.0,87352.0,0.01148]
[1766773884096,0.13308177,87366.0,87352.0,0.01148]
[1766773884499,0.04632582,87365.0,87352.0,0.01148]
[1766773884914,0.04632582,87365.0,87352.0,0.02292793]
[1766773885125,0.06857958,87366.0,87365.0,0.000549]
[1766773885556,0.06857958,87366.0,87352.0,0.01148]
[1766773886623,0.06857958,87366.0,87352.0,0.02292793]
[1766773887041,0.06857958,87366.0,87352.0,0.01148]
[1766773887250,0.45057315,87370.0,87366.0,0.00047942]
[1766773887458,0.07999,87371.0,87366.0,0.00047942]
[1766773887666,0.07999,87371.0,87353.0,0.0114478]
[1766773887867,0.07999,87371.0,87353.0,0.01151738]
[1766773888270,0.07999,87371.0,87354.0,0.01144767]
[1766773888477,0.45057315,87370.0,87354.0,0.01144767]
[1766773888904,0.51908315,87370.0,87354.0,0.01144767]
[1766773889574,0.51908315,87370.0,87353.0,0.01151738]
[1766773889789,0.51908315,87370.0,87353.0,6.958e-05]
[1766773890083,0.51908315,87370.0,87353.0,0.01151738]